fUST/lending_fUST_20250221
["ID","MTS","AMOUNT","RATE_DAILY","PERIOD"]
[353849478,1740091856899,-749.35,0.00014767,2]
[353849479,1740091856909,-151.0,0.00014767,2]
[353849480,1740091856918,-500.0,0.00014767,2]
[353849481,1740091856928,-47582.77,0.00014767,2]
[353849482,1740091856938,-500.0,0.00014767,2]
[353849483,1740091856948,-1419.31,0.00014767,2]
[353849484,1740091856957,-2371.63,0.00014767,2]
[353849485,1740091856967,-3044.91,0.00014767,2]
[353849486,1740091856976,-1421.06,0.00014767,2]
[353849487,1740091856985,-1981.43,0.00014767,2]
[353849488,1740091856995,-1485.07,0.00014767,2]
[353849489,1740091857004,-4309.84,0.00014767,2]
[353849490,1740091857013,-8528.76,0.00014767,2]
[353849491,1740091857023,-630.65,0.00014767,2]
[353849492,1740091857033,-506.4,0.00014767,2]
[353849493,1740091857042,-1073.14,0.00014767,2]
[353849494,1740091857051,-4317.45,0.00014767,2]
[353849495,1740091857060,-2449.34,0.00014767,2]
[353849496,1740091857070,-151.0,0.00014767,2]
[353849497,1740091857079,-1506.63,0.00014767,2]
[353849498,1740091857089,-601.98,0.00014767,2]
[353849499,1740091857098,-4294.1,0.00014767,2]
[353849500,1740091857108,-151.0,0.00014767,2]
[353849501,1740091857118,-645.96,0.00014767,2]
[353849502,1740091857128,-744.2,0.00014767,2]
[353849503,1740091857137,-151.0,0.00014767,2]
[353849504,1740091857147,-1264.16,0.00014767,2]
[353849505,1740091857156,-2500.0,0.00014767,2]
[353849506,1740091857166,-1017.94,0.00014767,2]
[353849507,1740091857175,-671.35,0.00014767,2]
[353849508,1740091857185,-2214.99,0.00014767,2]
[353849509,1740091857195,-707.81,0.00014767,2]
[353849510,1740091857204,-500.0,0.00014767,2]
[353849511,1740091857214,-2494.82,0.00014767,2]
[353849512,1740091857223,-2395.75,0.00014767,2]
[353849513,1740091857233,-605.1,0.00014767,2]
[353849514,1740091857242,-20855.28,0.00014767,2]
[353849515,1740091857251,-899.23,0.00014767,2]
[353849516,1740091857261,-2809.02,0.00014767,2]
[353849517,1740091857270,-500.0,0.00014767,2]
[353849518,1740091857280,-6937.4,0.00014767,2]
[353849519,1740091857290,-2444.33,0.00014767,2]
[353849520,1740091857299,-2173.53,0.00014767,2]
[353849521,1740091857309,-656.62,0.00014767,2]
[353849522,1740091857318,-1073.43,0.00014767,2]
[353849523,1740091857328,-500.0,0.00014767,2]
[353849524,1740091857338,-224.336594,0.00014767,2]
[353849525,1740091857348,-224.336594,0.00014767,2]
[353849526,1740091857357,-681.21,0.00014767,2]
[353849527,1740091857367,-201.922182,0.00014767,2]
[353849528,1740091857376,-500.0,0.00014767,2]
[353849529,1740091857386,-516.7,0.00014767,2]
[353849530,1740091857395,-2663.01,0.00014767,2]
[353849531,1740091857405,-500.0,0.00014767,2]
[353849532,1740091857415,-3692.28,0.00014767,2]
[353849533,1740091857425,-500.0,0.00014767,2]
[353849534,1740091857437,-500.0,0.00014794,2]
[353849535,1740091857447,-500.0,0.00014794,2]
[353849536,1740091857457,-299.50151707,0.00014794,2]
[353849537,1740091857466,-299.56735996,0.00014794,2]
[353849538,1740091857476,-215.89113556,0.00014794,2]
[353849539,1740091857486,-150.3,0.00014794,2]
[353849540,1740091857495,-500.0,0.00014794,2]
[353849541,1740091857505,-500.0,0.00014794,2]
[353849542,1740091857514,-192.8,0.000148,2]
[353849543,1740091857524,-192.8,0.000148,2]
[353849544,1740091857533,-605.42324317,0.00014802,2]
[353849545,1740091857543,-744.67164941,0.00014806,2]
[353849546,1740091857553,-9303.26989252,0.0001484,2]
[353849547,1740091857798,-584.31616661,0.00013586,2]
[353849548,1740091857807,-500.0,0.00013698,2]
[353849549,1740091857817,-500.0,0.0001378,2]
[353849550,1740091857826,-500.0,0.00013863,2]
[353849551,1740091857835,-500.0,0.00013945,2]
[353849552,1740091857843,-500.0,0.00014027,2]
[353849553,1740091857855,-500.0,0.00014109,2]
[353849554,1740091857866,-500.0,0.00014191,2]
[353849555,1740091857875,-750.8,0.00014273,2]
[353849556,1740091857884,-129.32543933,0.00014273,2]
[353849559,1740092881126,325.376822,9.041e-05,2]
[353849611,1740093031868,-519.12,0.00010959,2]
[353849613,1740093031878,-379.36,0.00010959,2]
[353849616,1740093031894,-53.24,0.00010959,2]
[353849618,1740093031904,-360.5,0.00010959,2]
[353849620,1740093031913,-300.42,0.00010959,2]
[353849622,1740093031922,-250.35,0.00010959,2]
[353849624,1740093031931,-208.62,0.00010959,2]
[353849626,1740093031940,-300.0,0.00010999,2]
[353849628,1740093031950,-3285.0,0.00011,2]
[353849630,1740093031959,-3284.0,0.00011,2]
[353849632,1740093031968,-3284.0,0.00011,2]
[353849634,1740093031977,-3284.0,0.00011,2]
[353849636,1740093031986,-3284.0,0.00011,2]
[353849638,1740093031995,-3284.0,0.00011,2]
[353849639,1740093032005,-5000.0,0.00011845,2]
[353849642,1740093032014,-5000.0,0.00011845,2]
[353849643,1740093032023,-5000.0,0.00011845,2]
[353849645,1740093032033,-5000.0,0.00011845,2]
[353849647,1740093032042,-5000.0,0.00011845,2]
[353849649,1740093032051,-420.0,0.00012087,2]
[353849651,1740093032060,-700.0,0.00013068,2]
[353849653,1740093032069,-587.0,0.00013282,2]
[353849655,1740093032079,-749.79634804,0.00013573,2]
[353849657,1740093032088,-3000.0,0.00013598,2]
[353849659,1740093032097,-332.97590876,0.0001368,2]
[353849661,1740093032107,-151.0,0.0001369,2]
[353849663,1740093032116,-500.0,0.00013697,2]
[353849665,1740093032125,-500.0,0.00013697,2]
[353849667,1740093032134,-255.23769833,0.00013697,2]
[353849669,1740093032143,-187.77595319,0.00013697,2]
[353849671,1740093032153,-500.0,0.00013697,2]
[353849673,1740093032162,-500.0,0.00013697,2]
[353849675,1740093032171,-500.0,0.00013697,2]
[353849677,1740093032181,-159.40000027,0.00013697,2]
[353849679,1740093032190,-500.0,0.00013697,2]
[353849681,1740093032199,-500.0,0.00013697,2]
[353849683,1740093032208,-500.0,0.00013697,2]
[353849685,1740093032218,-500.0,0.00013697,2]
[353849687,1740093032228,-500.0,0.00013697,2]
[353849689,1740093032238,-500.0,0.00013697,2]
[353849691,1740093032247,-500.0,0.00013697,2]
[353849692,1740093032257,-500.0,0.00013697,2]
[353849694,1740093032269,-500.0,0.00013697,2]
[353849696,1740093032278,-500.0,0.00013697,2]
[353849698,1740093032288,-500.0,0.00013697,2]
[353849700,1740093032299,-500.0,0.00013697,2]
[353849702,1740093032315,-500.0,0.00013697,2]
[353849703,1740093032324,-561.47297307,0.00013697,2]
[353849704,1740093032334,-500.0,0.00013697,2]
[353849706,1740093032343,-349.92160778,0.00013697,2]
[353849708,1740093032353,-500.0,0.00013697,2]
[353849710,1740093032362,-500.0,0.00013697,2]
[353849712,1740093032371,-500.0,0.00013697,2]
[353849714,1740093032379,-500.0,0.00013697,2]
[353849716,1740093032388,-500.0,0.00013697,2]
[353849718,1740093032398,-500.0,0.00013697,2]
[353849720,1740093032407,-500.0,0.00013698,2]
[353849722,1740093032417,-517.26745547,0.00013698,2]
[353849724,1740093032427,-500.0,0.00013698,2]
[353849726,1740093032436,-639.57,0.00013698,2]
[353849728,1740093032445,-500.0,0.00013698,2]
[353849730,1740093032455,-500.0,0.00013698,2]
[353849732,1740093032464,-1000.0,0.00013698,2]
[353849734,1740093032474,-361.09667314,0.00013698,2]
[353849736,1740093032483,-500.0,0.00013698,2]
[353849738,1740093032493,-485.62694335,0.00013698,2]
[353849740,1740093032502,-500.0,0.00013698,2]
[353849742,1740093032511,-500.0,0.00013698,2]
[353849744,1740093032521,-500.0,0.00013698,2]
[353849746,1740093032530,-500.0,0.00013698,2]
[353849748,1740093032539,-500.0,0.00013698,2]
[353849750,1740093032549,-500.0,0.00013698,2]
[353849752,1740093032559,-500.0,0.00013698,2]
[353849754,1740093032568,-500.0,0.00013698,2]
[353849756,1740093032578,-500.0,0.00013698,2]
[353849758,1740093032587,-500.0,0.00013698,2]
[353849760,1740093032596,-500.0,0.00013698,2]
[353849762,1740093032605,-500.0,0.00013698,2]
[353849764,1740093032614,-553.35952589,0.00013698,2]
[353849766,1740093032624,-511.91622594,0.00013698,2]
[353849768,1740093032634,-500.0,0.00013698,2]
[353849770,1740093032643,-516.57576973,0.00013698,2]
[353849772,1740093032652,-500.0,0.00013698,2]
[353849773,1740093032662,-500.0,0.00013698,2]
[353849775,1740093032672,-500.0,0.00013698,2]
[353849777,1740093032681,-500.0,0.00013698,2]
[353849779,1740093032691,-500.0,0.00013698,2]
[353849782,1740093032700,-500.0,0.00013698,2]
[353849784,1740093032710,-500.0,0.00013698,2]
[353849786,1740093032719,-500.0,0.00013698,2]
[353849788,1740093032729,-500.0,0.00013698,2]
[353849789,1740093032738,-500.0,0.00013698,2]
[353849792,1740093032748,-500.0,0.00013698,2]
[353849794,1740093032757,-500.0,0.00013698,2]
[353849795,1740093032767,-500.0,0.00013698,2]
[353849797,1740093032776,-500.0,0.00013698,2]
[353849799,1740093032785,-500.0,0.00013698,2]
[353849801,1740093032794,-505.28212212,0.00013698,2]
[353849803,1740093032804,-500.99320311,0.00013698,2]
[353849805,1740093032813,-500.0,0.00013698,2]
[353849807,1740093032822,-500.0,0.00013698,2]
[353849809,1740093032831,-500.0,0.00013698,2]
[353849811,1740093032840,-500.0,0.00013698,2]
[353849813,1740093032849,-500.0,0.00013698,2]
[353849815,1740093032859,-500.0,0.00013698,2]
[353849817,1740093032867,-406.44118837,0.00013698,2]
[353849819,1740093032878,-500.0,0.00013698,2]
[353849821,1740093032887,-219.02584653,0.00013698,2]
[353849823,1740093032896,-500.0,0.00013698,2]
[353849825,1740093032906,-500.0,0.00013698,2]
[353849827,1740093032915,-500.0,0.00013698,2]
[353849829,1740093032925,-500.0,0.00013698,2]
[353849831,1740093032935,-500.0,0.00013698,2]
[353849833,1740093032944,-188.41224194,0.00013698,2]
[353849835,1740093032953,-500.0,0.00013698,2]
[353849837,1740093032962,-552.52656968,0.00013698,2]
[353849839,1740093032972,-500.0,0.00013698,2]
[353849841,1740093032981,-500.0,0.00013698,2]
[353849843,1740093032990,-500.0,0.00013698,2]
[353849845,1740093033000,-500.0,0.00013698,2]
[353849847,1740093033010,-500.0,0.00013698,2]
[353849849,1740093033020,-500.0,0.00013698,2]
[353849851,1740093033029,-500.0,0.00013698,2]
[353849853,1740093033040,-500.0,0.00013698,2]
[353849855,1740093033050,-1646.56,0.00013698,2]
[353849857,1740093033059,-500.0,0.00013698,2]
[353849859,1740093033069,-501.17098001,0.00013698,2]
[353849861,1740093033078,-500.0,0.00013698,2]
[353849863,1740093033088,-500.0,0.00013698,2]
[353849865,1740093033097,-227.48077508,0.00013698,2]
[353849867,1740093033107,-500.0,0.00013698,2]
[353849869,1740093033118,-500.0,0.00013698,2]
[353849871,1740093033128,-500.0,0.00013698,2]
[353849873,1740093033138,-500.0,0.00013698,2]
[353849875,1740093033147,-500.0,0.00013698,2]
[353849877,1740093033157,-500.0,0.00013698,2]
[353849879,1740093033167,-515.67555218,0.00013698,2]
[353849881,1740093033176,-500.0,0.00013698,2]
[353849883,1740093033185,-500.0,0.00013698,2]
[353849885,1740093033195,-500.0,0.00013698,2]
[353849887,1740093033204,-768.64,0.00013698,2]
[353849889,1740093033214,-352.50764116,0.00013698,2]
[353849891,1740093033223,-218.24491378,0.00013698,2]
[353849893,1740093033233,-503.29641154,0.00013698,2]
[353849895,1740093033242,-500.0,0.00013698,2]
[353849897,1740093033252,-501.16602888,0.00013698,2]
[353849899,1740093033264,-500.0,0.00013698,2]
[353849901,1740093033274,-500.0,0.00013698,2]
[353849903,1740093033283,-500.0,0.00013698,2]
[353849905,1740093033292,-500.0,0.00013698,2]
[353849907,1740093033302,-500.0,0.00013698,2]
[353849909,1740093033311,-500.0,0.00013698,2]
[353849911,1740093033320,-500.0,0.00013698,2]
[353849913,1740093033330,-985.22,0.00013698,2]
[353849915,1740093033340,-500.0,0.00013698,2]
[353849917,1740093033350,-500.0,0.00013698,2]
[353849919,1740093033359,-506.37998842,0.00013698,2]
[353849921,1740093033368,-500.0,0.00013698,2]
[353849923,1740093033378,-500.0,0.00013698,2]
[353849925,1740093033387,-500.0,0.00013698,2]
[353849927,1740093033397,-500.0,0.00013698,2]
[353849929,1740093033407,-650.61,0.00013698,2]
[353849931,1740093033417,-500.0,0.00013698,2]
[353849933,1740093033427,-636.46,0.00013698,2]
[353849935,1740093033436,-500.0,0.00013698,2]
[353849937,1740093033446,-500.0,0.00013698,2]
[353849938,1740093033455,-500.0,0.00013698,2]
[353849941,1740093033465,-739.49,0.00013698,2]
[353849942,1740093033475,-500.0,0.00013698,2]
[353849944,1740093033485,-500.0,0.00013698,2]
[353849946,1740093033495,-500.0,0.00013698,2]
[353849948,1740093033504,-500.0,0.00013698,2]
[353849950,1740093033514,-500.0,0.00013698,2]
[353849952,1740093033524,-894.83743417,0.00013698,2]
[353849955,1740093033694,-353.56256583,0.00013698,2]
[353849956,1740093033704,-500.0,0.00013698,2]
[353849957,1740093033714,-697.87,0.00013698,2]
[353849958,1740093033724,-500.0,0.00013698,2]
[353849959,1740093033734,-403.37732889,0.00013698,2]
[353849961,1740093033744,-850.25,0.00013698,2]
[353849963,1740093033753,-509.20042152,0.00013698,2]
[353849965,1740093033763,-712.79,0.00013698,2]
[353849967,1740093033773,-1377.81,0.00013698,2]
[353849969,1740093033782,-500.0,0.00013698,2]
[353849971,1740093033792,-688.56,0.00013698,2]
[353849973,1740093033801,-500.0,0.00013698,2]
[353849975,1740093033811,-500.0,0.00013698,2]
[353849977,1740093033821,-500.0,0.00013698,2]
[353849978,1740093033831,-500.0,0.00013698,2]
[353849982,1740093033965,-608.68,0.00013698,2]
[353849984,1740093033975,-500.0,0.00013698,2]
[353849986,1740093033984,-1320.59,0.00013698,2]
[353849988,1740093033994,-479.36266501,0.00013698,2]
[353849990,1740093034003,-533.75238592,0.00013698,2]
[353849991,1740093034012,-500.0,0.00013698,2]
[353849994,1740093034021,-500.0,0.00013698,2]
[353849996,1740093034031,-500.0,0.00013698,2]
[353849998,1740093034040,-371.33958002,0.00013698,2]
[353850000,1740093034050,-976.22,0.00013698,2]
[353850002,1740093034059,-500.0,0.00013698,2]
[353850004,1740093034068,-500.0,0.00013698,2]
[353850006,1740093034078,-500.0,0.00013698,2]
[353850008,1740093034088,-500.0,0.00013698,2]
[353850010,1740093034097,-500.0,0.00013698,2]
[353850012,1740093034106,-581.84,0.00013698,2]
[353850014,1740093034116,-500.0,0.00013698,2]
[353850016,1740093034125,-862.29,0.00013698,2]
[353850018,1740093034136,-504.57787772,0.00013698,2]
[353850020,1740093034146,-637.5,0.00013698,2]
[353850022,1740093034156,-500.0,0.00013698,2]
[353850024,1740093034165,-500.0,0.00013698,2]
[353850026,1740093034175,-500.0,0.00013698,2]
[353850028,1740093034184,-500.0,0.00013698,2]
[353850030,1740093034194,-500.0,0.00013698,2]
[353850032,1740093034203,-500.0,0.00013698,2]
[353850034,1740093034213,-502.51766207,0.00013698,2]
[353850036,1740093034222,-515.91,0.00013698,2]
[353850038,1740093034232,-500.0,0.00013698,2]
[353850040,1740093034241,-500.0,0.00013698,2]
[353850042,1740093034251,-500.0,0.00013698,2]
[353850044,1740093034261,-500.0,0.00013698,2]
[353850046,1740093034274,-500.0,0.00013698,2]
[353850048,1740093034283,-500.0,0.00013698,2]
[353850050,1740093034293,-500.0,0.00013698,2]
[353850052,1740093034302,-500.0,0.00013698,2]
[353850054,1740093034314,-1535.44,0.00013698,2]
[353850056,1740093034324,-501.02324578,0.00013698,2]
[353850058,1740093034333,-500.0,0.00013698,2]
[353850060,1740093034344,-500.0,0.00013698,2]
[353850062,1740093034354,-500.0,0.00013698,2]
[353850064,1740093034363,-3733.3,0.00013698,2]
[353850065,1740093034373,-500.0,0.00013698,2]
[353850067,1740093034383,-1361.48,0.00013698,2]
[353850069,1740093034393,-1229.23,0.00013698,2]
[353850071,1740093034402,-15222.34,0.00013698,2]
[353850073,1740093034411,-500.0,0.00013698,2]
[353850075,1740093034421,-515.6339278,0.00013698,2]
[353850077,1740093034430,-500.0,0.00013698,2]
[353850078,1740093034440,-500.0,0.00013698,2]
[353850080,1740093034450,-500.0,0.00013698,2]
[353850082,1740093034459,-858.67,0.00013698,2]
[353850084,1740093034469,-500.0,0.00013698,2]
[353850086,1740093034478,-500.0,0.00013698,2]
[353850088,1740093034488,-1267.47,0.00013698,2]
[353850090,1740093034498,-2550.67,0.00013698,2]
[353850091,1740093034506,-41028.88,0.00013698,2]
[353850093,1740093034515,-500.0,0.00013698,2]
[353850095,1740093034525,-1610.29,0.00013698,2]
[353850097,1740093034535,-646.42,0.00013698,2]
[353850099,1740093034544,-1919.21,0.00013698,2]
[353850101,1740093034553,-500.0,0.00013698,2]
[353850103,1740093034563,-3453.62,0.00013698,2]
[353850105,1740093034572,-500.0,0.00013698,2]
[353850106,1740093034581,-500.0,0.00013698,2]
[353850107,1740093034591,-1399.21,0.00013698,2]
[353850108,1740093034601,-1299.64,0.00013698,2]
[353850109,1740093034611,-6813.62,0.00013698,2]
[353850110,1740093034621,-265.21152161,0.00013698,2]
[353850111,1740093034635,-234.78847839,0.00013698,2]
[353850112,1740093034645,-500.0,0.00013698,2]
[353850113,1740093034655,-500.0,0.00013698,2]
[353850114,1740093034664,-298.51152161,0.00013698,2]
[353850115,1740093034676,-221.58847839,0.00013698,2]
[353850116,1740093034685,-208.61652161,0.00013698,2]
[353850117,1740093034697,-291.38347839,0.00013698,2]
[353850118,1740093034706,-805.69652163,0.00013698,2]
[353850131,1740093037847,-1614.42972313,0.00013698,2]
[353850132,1740093037859,-1432.71375524,0.00013698,2]
[353850133,1740093037869,-500.0,0.00013698,2]
[353850134,1740093037879,-500.0,0.00013698,2]
[353850135,1740093037889,-949.14,0.00013698,2]
[353850136,1740093037899,-2082.79,0.00013698,2]
[353850137,1740093037908,-500.0,0.00013698,2]
[353850138,1740093037930,-641.57,0.00013698,2]
[353850139,1740093037940,-500.0,0.00013698,2]
[353850140,1740093037950,-1297.19,0.00013698,2]
[353850141,1740093037961,-3621.04,0.00013698,2]
[353850142,1740093037970,-500.0,0.00013698,2]
[353850143,1740093037984,-500.0,0.00013698,2]
[353850144,1740093037994,-500.0,0.00013698,2]
[353850145,1740093038004,-500.0,0.00013698,2]
[353850146,1740093038014,-578.16,0.00013698,2]
[353850147,1740093038023,-657.69,0.00013698,2]
[353850148,1740093038033,-1074.3,0.00013698,2]
[353850149,1740093038043,-500.0,0.00013698,2]
[353850150,1740093038053,-500.0,0.00013698,2]
[353850151,1740093038062,-848.28,0.00013698,2]
[353850152,1740093038072,-2080.26,0.00013698,2]
[353850153,1740093038082,-619.59,0.00013698,2]
[353850154,1740093038092,-580.29,0.00013698,2]
[353850155,1740093038102,-546.21,0.00013698,2]
[353850156,1740093038112,-500.0,0.00013698,2]
[353850157,1740093038121,-500.0,0.00013698,2]
[353850158,1740093038131,-500.0,0.00013698,2]
[353850159,1740093038141,-500.0,0.00013698,2]
[353850160,1740093038151,-500.0,0.00013698,2]
[353850161,1740093038160,-2356.11,0.00013698,2]
[353850162,1740093038170,-2038.12,0.00013698,2]
[353850163,1740093038180,-749.35,0.00013698,2]
[353850164,1740093038189,-5827.26,0.00013698,2]
[353850165,1740093038199,-378.3472983,0.00013698,2]
[353850166,1740093038208,-2382.51,0.00013698,2]
[353850167,1740093038218,-1858.28,0.00013698,2]
[353850168,1740093038227,-500.0,0.00013698,2]
[353850169,1740093038237,-501.82976864,0.00013698,2]
[353850170,1740093038246,-500.0,0.00013698,2]
[353850171,1740093038256,-500.0,0.00013698,2]
[353850172,1740093038266,-500.0,0.00013698,2]
[353850173,1740093038276,-500.0,0.00013698,2]
[353850174,1740093038286,-500.0,0.00013698,2]
[353850175,1740093038296,-500.0,0.00013698,2]
[353850176,1740093038305,-500.0,0.00013698,2]
[353850177,1740093038315,-500.0,0.00013698,2]
[353850178,1740093038325,-500.0,0.00013698,2]
[353850179,1740093038335,-309.86,0.00013698,2]
[353850180,1740093038345,-894.52,0.00013698,2]
[353850181,1740093038356,-18344.11,0.00013698,2]
[353850182,1740093038366,-500.0,0.00013698,2]
[353850183,1740093038376,-500.0,0.00013698,2]
[353850184,1740093038387,-500.0,0.00013698,2]
[353850185,1740093038397,-500.0,0.00013698,2]
[353850186,1740093038408,-500.0,0.00013698,2]
[353850187,1740093038419,-500.0,0.00013698,2]
[353850188,1740093038429,-2193.0,0.00013698,2]
[353850189,1740093038439,-588.51,0.00013698,2]
[353850190,1740093038449,-500.0,0.00013698,2]
[353850191,1740093038459,-500.0,0.00013698,2]
[353850192,1740093038469,-2360.06,0.00013698,2]
[353850193,1740093038479,-547.18,0.00013698,2]
[353850194,1740093038488,-500.0,0.00013698,2]
[353850195,1740093038498,-500.0,0.00013698,2]
[353850196,1740093038508,-209.709451,0.00013698,2]
[353850197,1740093038518,-500.0,0.00013698,2]
[353850198,1740093038528,-500.0,0.00013698,2]
[353850199,1740093038539,-500.0,0.00013698,2]
[353850200,1740093038549,-500.0,0.00013698,2]
[353850201,1740093038559,-3121.6,0.00013698,2]
[353850202,1740093038569,-500.0,0.00013698,2]
[353850203,1740093038579,-500.0,0.00013698,2]
[353850204,1740093038588,-8484.74,0.00013698,2]
[353850205,1740093038598,-500.0,0.00013698,2]
[353850206,1740093038608,-163.755283,0.00013699,2]
[353850207,1740093038618,-164.612171,0.00013699,2]
[353850208,1740093038627,-500.0,0.00013699,2]
[353850209,1740093038637,-500.0,0.00013699,2]
[353850210,1740093038647,-500.0,0.00013699,2]
[353850211,1740093038657,-500.0,0.00013699,2]
[353850212,1740093038666,-500.0,0.00013699,2]
[353850213,1740093038676,-500.0,0.00013699,2]
[353850214,1740093038686,-500.0,0.00013699,2]
[353850215,1740093038695,-500.0,0.00013699,2]
[353850216,1740093038704,-456.34783748,0.00013699,2]
[353850217,1740093038714,-500.0,0.00013699,2]
[353850218,1740093038724,-500.0,0.00013699,2]
[353850219,1740093038733,-500.0,0.00013699,2]
[353850220,1740093038744,-500.0,0.00013699,2]
[353850221,1740093038757,-400.0,0.00013699,2]
[353850222,1740093038767,-500.0,0.00013699,2]
[353850223,1740093038776,-500.0,0.00013699,2]
[353850224,1740093038786,-500.0,0.00013699,2]
[353850225,1740093038795,-500.0,0.00013699,2]
[353850226,1740093038805,-500.0,0.00013699,2]
[353850227,1740093038814,-500.0,0.00013699,2]
[353850228,1740093038824,-500.0,0.00013699,2]
[353850229,1740093038833,-500.0,0.00013699,2]
[353850230,1740093038842,-500.0,0.00013699,2]
[353850231,1740093038852,-500.0,0.00013699,2]
[353850232,1740093038862,-500.0,0.00013699,2]
[353850233,1740093038871,-500.0,0.00013699,2]
[353850234,1740093038881,-500.0,0.00013699,2]
[353850235,1740093038891,-500.0,0.00013699,2]
[353850236,1740093038900,-500.0,0.00013699,2]
[353850237,1740093038910,-500.0,0.00013699,2]
[353850238,1740093038919,-500.0,0.00013699,2]
[353850239,1740093038928,-500.0,0.00013699,2]
[353850240,1740093038938,-500.0,0.00013699,2]
[353850241,1740093038948,-474.06547013,0.00013699,2]
[353850242,1740093038957,-500.0,0.00013699,2]
[353850243,1740093038967,-500.0,0.00013699,2]
[353850244,1740093038977,-500.0,0.00013699,2]
[353850245,1740093038987,-500.0,0.00013699,2]
[353850246,1740093038996,-500.0,0.00013699,2]
[353850247,1740093039006,-500.0,0.00013699,2]
[353850248,1740093039015,-500.0,0.00013699,2]
[353850249,1740093039025,-500.0,0.00013779,2]
[353850250,1740093039035,-329.18672832,0.00013779,2]
[353850251,1740093039044,-500.0,0.0001378,2]
[353850252,1740093039054,-500.0,0.0001378,2]
[353850253,1740093039063,-639.57,0.0001378,2]
[353850254,1740093039073,-500.0,0.0001378,2]
[353850255,1740093039083,-500.0,0.0001378,2]
[353850256,1740093039092,-1000.0,0.0001378,2]
[353850257,1740093039102,-500.0,0.0001378,2]
[353850258,1740093039111,-500.0,0.0001378,2]
[353850259,1740093039121,-500.0,0.0001378,2]
[353850260,1740093039130,-500.0,0.0001378,2]
[353850261,1740093039141,-500.0,0.0001378,2]
[353850262,1740093039150,-500.0,0.0001378,2]
[353850263,1740093039159,-296.54801846,0.0001378,2]
[353850264,1740093039169,-500.0,0.0001378,2]
[353850265,1740093039179,-500.0,0.0001378,2]
[353850266,1740093039188,-500.0,0.0001378,2]
[353850267,1740093039197,-506.68033263,0.0001378,2]
[353850268,1740093039206,-500.0,0.0001378,2]
[353850269,1740093039216,-500.0,0.0001378,2]
[353850270,1740093039226,-500.0,0.0001378,2]
[353850271,1740093039235,-500.0,0.0001378,2]
[353850272,1740093039244,-1646.56,0.0001378,2]
[353850273,1740093039254,-500.0,0.0001378,2]
[353850274,1740093039266,-500.0,0.0001378,2]
[353850275,1740093039277,-768.64,0.0001378,2]
[353850276,1740093039287,-500.0,0.0001378,2]
[353850277,1740093039296,-500.0,0.0001378,2]
[353850278,1740093039307,-242.72906089,0.0001378,2]
[353850279,1740093039317,-500.0,0.0001378,2]
[353850280,1740093039327,-500.0,0.0001378,2]
[353850281,1740093039337,-500.0,0.0001378,2]
[353850282,1740093039349,-985.22,0.0001378,2]
[353850283,1740093039359,-500.0,0.0001378,2]
[353850284,1740093039369,-500.0,0.0001378,2]